fUST/lending_fUST_20240615
["ID","MTS","AMOUNT","RATE_DAILY","PERIOD"]
[329480575,1718387453111,-463.990737,0.00017244,2]
[329480576,1718387453143,-696.88895,0.00017244,2]
[329480577,1718387453161,-696.88895,0.00017244,2]
[329480578,1718387453185,-696.88895,0.00017244,2]
[329480579,1718387453201,-696.88895,0.00017244,2]
[329480580,1718387453215,-1000.0,0.00017244,2]
[329480581,1718387453227,-393.053927,0.00017244,2]
[329480582,1718387453243,-477.463038,0.00017244,2]
[329480583,1718387453265,-477.463038,0.00017244,2]
[329480584,1718387453278,-151.0,0.00017244,2]
[329480585,1718387453294,-477.463038,0.00017244,2]
[329480586,1718387453307,-477.463038,0.00017244,2]
[329480587,1718387453333,-151.0,0.00017244,2]
[329480588,1718387453352,-151.0,0.00017244,2]
[329480589,1718387453381,-419.267151,0.00017244,2]
[329480590,1718387453397,-419.267151,0.00017244,2]
[329480591,1718387453411,-419.267151,0.00017244,2]
[329480592,1718387453422,-419.267151,0.00017244,2]
[329480593,1718387453436,-151.0,0.00017244,2]
[329480594,1718387453453,-272.982961,0.00017244,2]
[329480595,1718387453464,-151.0,0.00017244,2]
[329480596,1718387453475,-184.718329,0.00017244,2]
[329480597,1718387453486,-184.718329,0.00017244,2]
[329480598,1718387453506,-184.718329,0.00017244,2]
[329480599,1718387453518,-184.718329,0.00017244,2]
[329480600,1718387453533,-151.0,0.00017244,2]
[329480601,1718387453562,-220.453376,0.00017244,2]
[329480602,1718387453577,-151.0,0.00017244,2]
[329480603,1718387453602,-151.0,0.00017244,2]
[329480604,1718387453620,-500.0,0.00017245,2]
[329480605,1718387453633,-500.0,0.00017246,2]
[329480606,1718387453646,-500.0,0.00017246,2]
[329480607,1718387453657,-500.0,0.00017246,2]
[329480608,1718387453677,-500.0,0.00017246,2]
[329480609,1718387453689,-500.0,0.00017246,2]
[329480610,1718387453703,-500.0,0.00017246,2]
[329480611,1718387453718,-1000.0,0.00017246,2]
[329480612,1718387453741,-500.0,0.00017246,2]
[329480613,1718387453756,-500.0,0.00017246,2]
[329480614,1718387453772,-254.65163504,0.00017246,2]
[329480615,1718387453795,-151.0,0.00017246,2]
[329480616,1718387453819,-151.0,0.00017246,2]
[329480617,1718387453862,-227.836466,0.00017246,2]
[329480618,1718387453881,-227.836466,0.00017246,2]
[329480619,1718387453923,-500.0,0.00017246,2]
[329480620,1718387453938,-151.0,0.00017246,2]
[329480621,1718387453952,-151.0,0.00017246,2]
[329480622,1718387454000,-151.0,0.00017246,2]
[329480623,1718387454063,-151.0,0.00017246,2]
[329480624,1718387454101,-463.990737,0.00017259,2]
[329480625,1718387454131,-463.990737,0.00017259,2]
[329480626,1718387454155,-696.88895,0.00017259,2]
[329480627,1718387454181,-696.88895,0.00017259,2]
[329480628,1718387454196,-477.463038,0.00017259,2]
[329480629,1718387454211,-477.463038,0.00017259,2]
[329480630,1718387454227,-20968.71,0.00017259,2]
[329480631,1718387454240,-500.0,0.00017259,2]
[329480632,1718387454252,-419.267151,0.00017259,2]
[329480633,1718387454264,-419.267151,0.00017259,2]
[329480634,1718387454275,-184.718329,0.00017259,2]
[329480635,1718387454291,-184.718329,0.00017259,2]
[329480636,1718387454304,-151.0,0.00017259,2]
[329480637,1718387454317,-151.0,0.00017259,2]
[329480638,1718387454346,-500.0,0.0001726,2]
[329480639,1718387454370,-234.0,0.0001726,2]
[329480640,1718387454387,-234.0,0.0001726,2]
[329480641,1718387454409,-234.0,0.0001726,2]
[329480642,1718387454453,-234.0,0.0001726,2]
[329480643,1718387454496,-151.0,0.0001726,2]
[329480644,1718387454524,-151.0,0.0001726,2]
[329480645,1718387454557,-211.678674,0.0001726,2]
[329480646,1718387454603,-500.0,0.0001726,2]
[329480647,1718387454675,-500.0,0.0001726,2]
[329480648,1718387454689,-171.234053,0.0001726,2]
[329480649,1718387454702,-500.0,0.0001726,2]
[329480650,1718387454722,-151.0,0.0001726,2]
[329480651,1718387454773,-151.0,0.0001726,2]
[329480652,1718387454786,-500.0,0.0001726,2]
[329480653,1718387454798,-500.0,0.0001726,2]
[329480654,1718387454811,-500.0,0.0001726,2]
[329480655,1718387454827,-227.836466,0.0001726,2]
[329480656,1718387454864,-227.836466,0.0001726,2]
[329480657,1718387454894,-463.990737,0.0001726,2]
[329480658,1718387454916,-463.990737,0.0001726,2]
[329480659,1718387454939,-500.0,0.0001726,2]
[329480660,1718387454959,-911.23,0.0001726,2]
[329480661,1718387454996,-696.88895,0.0001726,2]
[329480662,1718387455007,-696.88895,0.0001726,2]
[329480663,1718387455021,-43225.57,0.0001726,2]
[329480664,1718387455034,-615.17,0.0001726,2]
[329480665,1718387455060,-477.463038,0.0001726,2]
[329480666,1718387455074,-477.463038,0.0001726,2]
[329480667,1718387455086,-984.82,0.0001726,2]
[329480668,1718387455100,-500.0,0.0001726,2]
[329480669,1718387455114,-500.0,0.0001726,2]
[329480670,1718387455128,-151.0,0.0001726,2]
[329480671,1718387455155,-151.0,0.0001726,2]
[329480672,1718387455177,-500.0,0.0001726,2]
[329480673,1718387455196,-500.0,0.0001726,2]
[329480674,1718387455222,-2960.72,0.0001726,2]
[329480675,1718387455245,-2403.26,0.0001726,2]
[329480676,1718387455259,-629.53,0.0001726,2]
[329480677,1718387455273,-500.0,0.0001726,2]
[329480678,1718387455285,-500.0,0.0001726,2]
[329480679,1718387455309,-500.0,0.0001726,2]
[329480680,1718387455322,-1969.94,0.0001726,2]
[329480681,1718387455334,-634.81,0.0001726,2]
[329480682,1718387455350,-419.267151,0.0001726,2]
[329480683,1718387455394,-419.267151,0.0001726,2]
[329480684,1718387455407,-500.0,0.0001726,2]
[329480685,1718387455424,-151.0,0.0001726,2]
[329480686,1718387455438,-151.0,0.0001726,2]
[329480687,1718387455452,-3565.92,0.0001726,2]
[329480688,1718387455465,-184.718329,0.0001726,2]
[329480689,1718387455479,-500.0,0.0001726,2]
[329480690,1718387455492,-184.718329,0.0001726,2]
[329480691,1718387455502,-500.0,0.0001726,2]
[329480692,1718387455516,-151.0,0.0001726,2]
[329480693,1718387455533,-962.06,0.0001726,2]
[329480694,1718387455555,-4519.69,0.0001726,2]
[329480695,1718387455573,-704.5,0.00017417,2]
[329480696,1718387455594,-195.9,0.00017417,2]
[329480697,1718387455607,-1100.27196223,0.00017519,2]
[329480698,1718387455620,-500.0,0.00017519,2]
[329480699,1718387455653,-500.0,0.0001752,2]
[329480700,1718387455690,-151.0,0.0001752,2]
[329480701,1718387455721,-151.0,0.0001752,2]
[329480702,1718387455740,-500.0,0.0001752,2]
[329480703,1718387455769,-151.0,0.0001752,2]
[329480704,1718387455783,-500.0,0.0001752,2]
[329480705,1718387455809,-151.0,0.0001752,2]
[329480706,1718387455833,-500.0,0.0001752,2]
[329480707,1718387455865,-500.0,0.0001752,2]
[329480708,1718387455883,-500.0,0.0001752,2]
[329480709,1718387455900,-1000.0,0.0001752,2]
[329480710,1718387455922,-500.0,0.0001752,2]
[329480711,1718387455943,-500.0,0.0001752,2]
[329480712,1718387455953,-234.0,0.0001752,2]
[329480713,1718387455976,-234.0,0.0001752,2]
[329480714,1718387455992,-151.0,0.0001752,2]
[329480715,1718387456004,-151.0,0.0001752,2]
[329480716,1718387456016,-227.836466,0.0001752,2]
[329480717,1718387456035,-227.836466,0.0001752,2]
[329480718,1718387456087,-463.990737,0.0001752,2]
[329480719,1718387456134,-463.990737,0.0001752,2]
[329480720,1718387456159,-696.88895,0.0001752,2]
[329480721,1718387456194,-696.88895,0.0001752,2]
[329480722,1718387456218,-500.0,0.0001752,2]
[329480723,1718387456240,-477.463038,0.0001752,2]
[329480724,1718387456258,-477.463038,0.0001752,2]
[329480725,1718387456283,-151.0,0.0001752,2]
[329480726,1718387456336,-151.0,0.0001752,2]
[329480727,1718387456348,-151.0,0.0001752,2]
[329480728,1718387456360,-231.66199,0.0001752,2]
[329480729,1718387456373,-151.0,0.0001752,2]
[329480730,1718387456391,-411.42673703,0.00017532,2]
[329480731,1718387456421,-500.0,0.00017532,2]
[329480732,1718387456471,-419.267151,0.00017532,2]
[329480733,1718387456485,-419.267151,0.00017532,2]
[329480734,1718387456524,-184.718329,0.00017532,2]
[329480735,1718387456567,-184.718329,0.00017532,2]
[329480736,1718387456601,-591.06034063,0.00017533,2]
[329480737,1718387456614,-686.12053619,0.00017533,2]
[329480738,1718387456628,-151.0,0.00017533,2]
[329480739,1718387456641,-151.0,0.00017533,2]
[329480740,1718387456666,-234.0,0.00017533,2]
[329480741,1718387456681,-234.0,0.00017533,2]
[329480742,1718387456705,-151.0,0.00017533,2]
[329480743,1718387456740,-227.836466,0.00017533,2]
[329480744,1718387456796,-227.836466,0.00017533,2]
[329480745,1718387456811,-463.990737,0.00017533,2]
[329480746,1718387456830,-463.990737,0.00017533,2]
[329480747,1718387456893,-696.88895,0.00017533,2]
[329480748,1718387456924,-696.88895,0.00017533,2]
[329480749,1718387456953,-477.463038,0.00017533,2]
[329480750,1718387456972,-477.463038,0.00017533,2]
[329480751,1718387456999,-20968.71,0.00017533,2]
[329480752,1718387457039,-500.0,0.00017533,2]
[329480753,1718387457055,-500.0,0.00017534,2]
[329480754,1718387457094,-234.0,0.00017534,2]
[329480755,1718387457106,-234.0,0.00017534,2]
[329480756,1718387457120,-247.08401,0.00017534,2]
[329480757,1718387457135,-500.0,0.00017534,2]
[329480758,1718387457150,-500.0,0.00017534,2]
[329480759,1718387457165,-500.0,0.00017534,2]
[329480760,1718387457178,-151.0,0.00017534,2]
[329480761,1718387457203,-500.0,0.00017534,2]
[329480762,1718387457228,-500.0,0.00017534,2]
[329480763,1718387457248,-500.0,0.00017534,2]
[329480764,1718387457277,-227.836466,0.00017534,2]
[329480765,1718387457300,-227.836466,0.00017534,2]
[329480766,1718387457311,-463.990737,0.00017534,2]
[329480767,1718387457325,-463.990737,0.00017534,2]
[329480768,1718387457354,-500.0,0.00017534,2]
[329480769,1718387457369,-911.23,0.00017534,2]
[329480770,1718387457409,-696.88895,0.00017534,2]
[329480771,1718387457433,-696.88895,0.00017534,2]
[329480772,1718387457446,-43225.57,0.00017534,2]
[329480773,1718387457458,-615.17,0.00017534,2]
[329480774,1718387457469,-477.463038,0.00017534,2]
[329480775,1718387457486,-477.463038,0.00017534,2]
[329480776,1718387457523,-500.0,0.00017534,2]
[329480777,1718387457543,-984.82,0.00017534,2]
[329480778,1718387457579,-500.0,0.00017534,2]
[329480779,1718387457601,-151.0,0.00017534,2]
[329480780,1718387457615,-151.0,0.00017534,2]
[329480781,1718387457636,-295.3134,0.00017534,2]
[329480782,1718387457686,-500.0,0.00017534,2]
[329480783,1718387457705,-500.0,0.00017534,2]
[329480784,1718387457717,-2960.72,0.00017534,2]
[329480785,1718387457731,-2403.26,0.00017534,2]
[329480786,1718387457745,-629.53,0.00017534,2]
[329480787,1718387457759,-500.0,0.00017534,2]
[329480788,1718387457774,-500.0,0.00017534,2]
[329480789,1718387457797,-500.0,0.00017534,2]
[329480790,1718387457818,-1969.94,0.00017534,2]
[329480791,1718387457844,-634.81,0.00017534,2]
[329480792,1718387457869,-419.267151,0.00017534,2]
[329480793,1718387457895,-419.267151,0.00017534,2]
[329480794,1718387457907,-419.267151,0.00017534,2]
[329480795,1718387457918,-419.267151,0.00017534,2]
[329480796,1718387457931,-500.0,0.00017534,2]
[329480797,1718387457942,-151.0,0.00017534,2]
[329480798,1718387457982,-151.0,0.00017534,2]
[329480799,1718387457999,-3565.92,0.00017534,2]
[329480800,1718387458021,-184.718329,0.00017534,2]
[329480801,1718387458040,-184.718329,0.00017534,2]
[329480802,1718387458084,-500.0,0.00017534,2]
[329480803,1718387458104,-184.718329,0.00017534,2]
[329480804,1718387458120,-184.718329,0.00017534,2]
[329480805,1718387458142,-601.38818274,0.00017534,2]
[329480806,1718387458179,-151.0,0.00017534,2]
[329480807,1718387458265,-151.0,0.00017534,2]
[329480808,1718387458292,-962.06,0.00017534,2]
[329480809,1718387458312,-4519.69,0.00017534,2]
[329480810,1718387458331,-332.617894,0.00017549,2]
[329480811,1718387458346,-398.834623,0.00017549,2]
[329480812,1718387458362,-186.891571,0.00017549,2]
[329480813,1718387458373,-162.518286,0.00017549,2]
[329480814,1718387458392,-1314.195627,0.00017549,2]
[329480815,1718387458412,-1149.937294,0.00017549,2]
[329480816,1718387458423,-704.5,0.00017577,2]
[329480817,1718387458435,-195.9,0.00017577,2]
[329480818,1718387458450,-1186.05744562,0.00017698,2]
[329480819,1718387458480,-655.28516347,0.00017704,2]
[329480820,1718387458494,-704.5,0.00017736,2]
[329480821,1718387458507,-195.9,0.00017736,2]
[329480822,1718387458518,-332.617894,0.00017768,2]
[329480823,1718387458553,-398.834623,0.00017768,2]
[329480824,1718387458578,-1149.937294,0.00017768,2]
[329480825,1718387458590,-1314.195627,0.00017768,2]
[329480826,1718387458606,-151.0,0.00017768,2]
[329480827,1718387458616,-151.0,0.00017768,2]
[329480828,1718387458628,-500.0,0.00017793,2]
[329480829,1718387458648,-500.0,0.00017794,2]
[329480830,1718387458664,-151.0,0.00017794,2]
[329480831,1718387458679,-500.0,0.00017794,2]
[329480832,1718387458705,-151.0,0.00017794,2]
[329480833,1718387458722,-500.0,0.00017794,2]
[329480834,1718387458743,-151.0,0.00017794,2]
[329480835,1718387458755,-500.0,0.00017794,2]
[329480836,1718387458774,-500.0,0.00017794,2]
[329480837,1718387458789,-518.355624,0.00017794,2]
[329480838,1718387458809,-500.0,0.00017794,2]
[329480839,1718387458845,-500.0,0.00017794,2]
[329480840,1718387458858,-234.0,0.00017794,2]
[329480841,1718387458869,-234.0,0.00017794,2]
[329480842,1718387458881,-151.0,0.00017794,2]
[329480843,1718387458893,-227.836466,0.00017794,2]
[329480844,1718387459007,-227.836466,0.00017794,2]
[329480845,1718387459022,-463.990737,0.00017794,2]
[329480846,1718387459034,-463.990737,0.00017794,2]
[329480847,1718387459056,-696.88895,0.00017794,2]
[329480848,1718387459086,-500.0,0.00017794,2]
[329480849,1718387459111,-696.88895,0.00017794,2]
[329480850,1718387459121,-477.463038,0.00017794,2]
[329480851,1718387459141,-477.463038,0.00017794,2]
[329480852,1718387459155,-151.0,0.00017794,2]
[329480853,1718387459193,-419.267151,0.00017794,2]
[329480854,1718387459216,-419.267151,0.00017794,2]
[329480855,1718387459227,-151.0,0.00017794,2]
[329480856,1718387459238,-184.718329,0.00017794,2]
[329480857,1718387459250,-184.718329,0.00017794,2]
[329480858,1718387459262,-777.89782786,0.00017799,2]
[329480859,1718387459285,-500.0,0.00017806,2]
[329480860,1718387459296,-151.0,0.00017807,2]
[329480861,1718387459309,-280.453782,0.00017807,2]
[329480862,1718387459325,-234.0,0.00017807,2]
[329480863,1718387459358,-234.0,0.00017807,2]
[329480864,1718387459371,-227.836466,0.00017807,2]
[329480865,1718387459390,-227.836466,0.00017807,2]
[329480866,1718387459410,-463.990737,0.00017807,2]
[329480867,1718387459431,-463.990737,0.00017807,2]
[329480868,1718387459461,-696.88895,0.00017807,2]
[329480869,1718387459509,-696.88895,0.00017807,2]
[329480870,1718387459542,-477.463038,0.00017807,2]
[329480871,1718387459574,-477.463038,0.00017807,2]
[329480872,1718387459592,-20968.71,0.00017807,2]
[329480873,1718387459620,-500.0,0.00017807,2]
[329480874,1718387459649,-419.267151,0.00017807,2]
[329480875,1718387459660,-419.267151,0.00017807,2]
[329480876,1718387459676,-184.718329,0.00017807,2]
[329480877,1718387459687,-184.718329,0.00017807,2]
[329480878,1718387459704,-151.0,0.00017807,2]
[329480879,1718387459716,-500.0,0.00017808,2]
[329480880,1718387459729,-234.0,0.00017808,2]
[329480881,1718387459743,-234.0,0.00017808,2]
[329480882,1718387459761,-500.0,0.00017808,2]
[329480883,1718387459781,-500.0,0.00017808,2]
[329480884,1718387459795,-500.0,0.00017808,2]
[329480885,1718387459812,-245.277936,0.00017808,2]
[329480886,1718387459838,-500.0,0.00017808,2]
[329480887,1718387459854,-500.0,0.00017808,2]
[329480888,1718387459866,-500.0,0.00017808,2]
[329480889,1718387459879,-227.836466,0.00017808,2]
[329480890,1718387459915,-227.836462,0.00017808,2]
[329480891,1718387459927,-463.990737,0.00017808,2]
[329480892,1718387459938,-463.990743,0.00017808,2]
[329480893,1718387459952,-500.0,0.00017808,2]
[329480894,1718387459970,-911.23,0.00017808,2]
[329480895,1718387459991,-696.88895,0.00017808,2]
[329480896,1718387460003,-696.888944,0.00017808,2]
[329480897,1718387460014,-43225.57,0.00017808,2]
[329480898,1718387460047,-615.17,0.00017808,2]
[329480899,1718387460088,-477.463038,0.00017808,2]
[329480900,1718387460101,-477.46304211,0.00017808,2]
[329480901,1718387460119,-500.0,0.00017808,2]
[329480902,1718387460154,-984.82,0.00017808,2]
[329480903,1718387460171,-500.0,0.00017808,2]
[329480904,1718387460185,-151.0,0.00017808,2]
[329480905,1718387460196,-151.0,0.00017808,2]
[329480906,1718387460208,-500.0,0.00017808,2]
[329480907,1718387460221,-500.0,0.00017808,2]
[329480908,1718387460232,-2960.72,0.00017808,2]
[329480909,1718387460242,-2403.26,0.00017808,2]
[329480910,1718387460254,-629.53,0.00017808,2]
[329480911,1718387460267,-500.0,0.00017808,2]
[329480912,1718387460277,-500.0,0.00017808,2]
[329480913,1718387460288,-500.0,0.00017808,2]
[329480914,1718387460299,-1969.94,0.00017808,2]
[329480915,1718387460336,-634.81,0.00017808,2]
[329480916,1718387460351,-419.267151,0.00017808,2]
[329480917,1718387460367,-419.26714381,0.00017808,2]
[329480918,1718387460379,-500.0,0.00017808,2]
[329480919,1718387460392,-151.0,0.00017808,2]
[329480920,1718387460408,-151.0,0.00017808,2]
[329480921,1718387460419,-3565.92,0.00017808,2]
[329480922,1718387460449,-184.718329,0.00017808,2]
[329480923,1718387460463,-500.0,0.00017808,2]
[329480924,1718387460489,-184.718324,0.00017808,2]
[329480925,1718387460531,-962.06,0.00017808,2]
[329480926,1718387460558,-4519.69,0.00017808,2]
[329480927,1718387460580,-704.5,0.00017896,2]
[329480928,1718387460592,-195.9,0.00017896,2]
[329480929,1718387460612,-151.0,0.00017951,2]
[329480930,1718387460625,-499.0,0.00017951,2]
[329480931,1718387460653,-163.609,0.00017951,2]
[329480932,1718387460667,-1750.0,0.00017951,2]
[329480933,1718387460700,-186.891571,0.00017987,2]
[329480934,1718387460711,-162.518286,0.00017987,2]
[329480935,1718387460723,-332.617894,0.00017987,2]
[329480936,1718387460734,-398.834623,0.00017987,2]
[329480937,1718387460749,-1149.937294,0.00017987,2]
[329480938,1718387460760,-1314.195627,0.00017987,2]
[329480939,1718387460774,-2000.0,0.00018,2]
[329480940,1718387460792,-3500.0,0.00018,4]
[329480941,1718387460806,-704.5,0.00018056,2]
[329480942,1718387460822,-195.9,0.00018056,2]
[329480943,1718387460835,-2201.56040677,0.00018064,2]
[329480944,1718387460857,-155.01550155,0.00018064,2]
[329480945,1718387460873,-151.0,0.00018064,2]
[329480946,1718387460905,-228.15123184,0.00018065,2]
[329480947,1718387460919,-500.0,0.00018065,2]
[329480948,1718387460930,-500.0,0.00018065,2]
[329480949,1718387460942,-151.0,0.00018066,2]
[329480950,1718387460956,-188.376771,0.00018066,2]
[329480951,1718387460970,-151.0,0.00018066,2]
[329480952,1718387460988,-234.0,0.00018066,2]
[329480953,1718387461010,-234.0,0.00018066,2]
[329480954,1718387461044,-159.06387123,0.00018068,2]
[329480955,1718387461060,-181.91947349,0.00018068,2]
[329480956,1718387461079,-1501.47522843,0.00018068,2]
[329480957,1718387461091,-500.0,0.00018068,2]
[329480958,1718387461106,-500.0,0.00018068,2]
[329480959,1718387461142,-151.0,0.00018068,2]
[329480960,1718387461156,-500.0,0.00018068,2]
[329480961,1718387461170,-500.0,0.00018068,2]
[329480962,1718387461181,-500.0,0.00018068,2]
[329480963,1718387461193,-500.0,0.00018068,2]
[329480964,1718387461205,-500.0,0.00018068,2]
[329480965,1718387461217,-500.0,0.0001808,2]
[329480966,1718387461241,-623.35511048,0.0001808,2]
[329480967,1718387461257,-420.0,0.0001808,2]
[329480968,1718387461270,-272.765393,0.00018081,2]
[329480969,1718387461283,-234.0,0.00018081,2]
[329480970,1718387461296,-234.0,0.00018081,2]
[329480971,1718387461315,-20968.71,0.00018081,2]
[329480972,1718387461336,-500.0,0.00018082,2]
[329480973,1718387461349,-500.0,0.00018082,2]
[329480974,1718387461407,-500.0,0.00018082,2]
[329480975,1718387461431,-500.0,0.00018082,2]
[329480976,1718387461457,-500.0,0.00018082,2]
[329480977,1718387461477,-911.23,0.00018082,2]
[329480978,1718387461515,-43225.57,0.00018082,2]
[329480979,1718387461534,-615.17,0.00018082,2]
[329480980,1718387461589,-984.82,0.00018082,2]
[329480981,1718387461600,-500.0,0.00018082,2]
[329480982,1718387461634,-500.0,0.00018082,2]
[329480983,1718387461646,-500.0,0.00018082,2]
[329480984,1718387461666,-2960.72,0.00018082,2]
[329480985,1718387461685,-2403.26,0.00018082,2]
[329480986,1718387461699,-629.53,0.00018082,2]
[329480987,1718387461731,-500.0,0.00018082,2]
[329480988,1718387461757,-500.0,0.00018082,2]
[329480989,1718387461772,-500.0,0.00018082,2]
[329480990,1718387461783,-1969.94,0.00018082,2]
[329480991,1718387461797,-634.81,0.00018082,2]
[329480992,1718387461809,-500.0,0.00018082,2]
[329480993,1718387461829,-3565.92,0.00018082,2]
[329480994,1718387461847,-263.76,0.00018082,2]
[329480995,1718387461897,-962.06,0.00018082,2]
[329480996,1718387461909,-4519.69,0.00018082,2]
[329480997,1718387461927,-600.0,0.00018125,2]
[329480998,1718387461943,-332.617894,0.00018207,2]
[329480999,1718387461972,-398.834623,0.00018207,2]
[329481000,1718387462002,-1149.937294,0.00018207,2]
[329481001,1718387462037,-1314.195627,0.00018207,2]
[329481002,1718387462076,-151.0,0.00018207,2]
[329481003,1718387462101,-704.5,0.00018215,2]
[329481004,1718387462118,-195.9,0.00018215,2]
[329481005,1718387462133,-600.0,0.00018314,2]
[329481006,1718387462145,-179.78860579,0.00018342,2]
[329481007,1718387462163,-500.0,0.00018342,2]
[329481008,1718387462201,-500.0,0.00018342,2]
[329481009,1718387462222,-500.0,0.00018342,2]
[329481010,1718387462242,-500.0,0.00018342,2]
[329481011,1718387462260,-500.0,0.00018342,2]
[329481012,1718387462276,-500.0,0.00018342,2]
[329481013,1718387462292,-500.0,0.00018342,2]
[329481014,1718387462306,-20968.71,0.00018355,2]
[329481015,1718387462329,-500.0,0.00018356,2]
[329481016,1718387462352,-500.0,0.00018356,2]
[329481017,1718387462369,-500.0,0.00018356,2]
[329481018,1718387462384,-911.23,0.00018356,2]
[329481019,1718387462434,-12171.76317341,0.00018356,2]
[329481020,1718387462562,-14228.31992876,0.00018356,2]
[329481021,1718387462602,-2470.76562671,0.00018356,2]
[329481022,1718387462634,-3581.83744021,0.00018356,2]
[329481023,1718387462686,-953.23570508,0.00018356,2]
[329481024,1718387903463,1432.16283222,9.999e-05,2]
[329481025,1718388177580,1145.0239964,0.00014929,2]
[329481027,1718388489820,24900.0,0.00014951,2]
[329481093,1718388635449,-771.35056496,0.00015433,2]
[329481094,1718388635476,-1575.86772743,0.00015433,2]
[329481095,1718388635494,-492.96739022,0.00015434,4]
[329481097,1718388635518,-278.38317474,0.00015434,4]
[329481098,1718388635528,-771.57445597,0.00015436,2]
[329481100,1718388635539,-164.239592,0.00016164,2]
[329481101,1718388635552,-491.46387262,0.00016338,2]
[329481103,1718388635570,-335.89527692,0.00016338,2]
[329481105,1718388635595,-335.89527691,0.00016407,2]
[329481106,1718388635617,-300.0,0.00016437,2]
[329481107,1718388635627,-500.0,0.00016438,2]
[329481108,1718388635655,-500.0,0.00016438,2]
[329481109,1718388635675,-500.0,0.00016438,2]
[329481110,1718388635687,-500.0,0.00016438,2]
[329481111,1718388635700,-500.0,0.00016438,2]
[329481112,1718388635710,-500.0,0.00016438,2]
[329481113,1718388635728,-500.0,0.00016438,2]
[329481116,1718388635744,-500.0,0.00016438,2]
[329481117,1718388635764,-500.0,0.00016438,2]
[329481119,1718388635800,-500.0,0.00016438,2]
[329481120,1718388635822,-500.0,0.00016438,2]
[329481121,1718388635841,-500.0,0.00016438,2]
[329481122,1718388635860,-500.0,0.00016438,2]
[329481123,1718388635896,-500.0,0.00016438,2]
[329481124,1718388635919,-502.93715686,0.00016438,2]
[329481125,1718388635933,-500.0,0.00016438,2]
[329481126,1718388635944,-500.0,0.00016438,2]
[329481127,1718388635961,-500.0,0.00016438,2]
[329481128,1718388635976,-500.0,0.00016438,2]
[329481129,1718388635997,-298.09295366,0.00016438,2]
[329481130,1718388636012,-500.0,0.00016438,2]
[329481131,1718388636024,-500.0,0.00016438,2]
[329481132,1718388636044,-500.0,0.00016438,2]
[329481133,1718388636063,-500.0,0.00016438,2]
[329481134,1718388636075,-500.0,0.00016438,2]
[329481136,1718388636108,-500.0,0.00016438,2]
[329481138,1718388636119,-552.32294094,0.00016438,2]
[329481140,1718388636135,-381.56976852,0.00016438,2]
[329481141,1718388636147,-500.0,0.00016438,2]
[329481142,1718388636160,-500.0,0.00016438,2]
[329481143,1718388636174,-500.0,0.00016438,2]
[329481144,1718388636204,-500.0,0.00016438,2]
[329481145,1718388636222,-500.0,0.00016438,2]
[329481146,1718388636246,-500.0,0.00016438,2]
[329481147,1718388636268,-402.14291596,0.00016438,2]
[329481148,1718388636280,-500.0,0.00016438,2]
[329481149,1718388636292,-500.0,0.00016438,2]
[329481150,1718388636304,-500.0,0.00016438,2]